Cogmind - Beta 15 @@@ ROGUE MODE // 2025.07.09 @ 04:06:15 Player: Heni Result: Destroyed by S-43 Plague with Heavy Machine Gun Performance ------------- Evolutions (9) 4500 Regions Visited (11) 2200 Robots Destroyed (81) 405 Value Destroyed (3367) 3367 Prototype IDs (20) 400 Alien Tech Used (0) 0 Bonus (1509) 1509 TOTAL SCORE: 12381 Bonus ------- High Alert Combat Kills 133 Follower Combat Kills 86 Entered DSFs 500 Registered with UFD 300 Met Optimus in HQ 500 Friendly Fire -10 Cogmind --------- Core Integrity 0/1600 Matter 122/300 Energy 99/100 System Corruption 0% Temperature Cool (0) Movement Core (50) Location -1/Access Parts ------- > --- POWER (2) -------- (None) > --- PROPULSION (10) -- (None) > --- UTILITY (10) ----- Experimental Signal Interpreter Advanced Targeting Computer Improved System Shield > --- WEAPON (3) ------- (None) > --- INVENTORY (5) ---- Compact Particle Reactor Experimental Sensor Array Warp Gun Cooled Nova Cannon Peak State ------------ > --- POWER ------------ Reinforced Fission Core Compact Particle Reactor > --- PROPULSION ------- Improved Medium Treads Improved Medium Treads Improved Medium Treads Improved Medium Treads Armored Medium Treads Armored Medium Treads Heavy Treads > --- UTILITY ---------- Advanced Heat Sink Advanced Coolant Injector Huge Storage Unit Enhanced Optical Array Experimental Optical Array Experimental Sensor Array Experimental Signal Interpreter Matter Filter Powered Armor Powered Armor > --- WEAPON ----------- Magnetic Acceleration Cannon Heavy Gauss Cannon Heavy Gauss Cannon > --- INVENTORY -------- Improved Medium Treads Improved Medium Treads Armored Medium Treads Huge Storage Unit Experimental Signal Interpreter Advanced Melee Analysis Suite Matter Filter Improved Phase Shifter Improved Medium Armor Plating Graphene Brace Hardlight Generator System Shield Component Analysis Suite Advanced Dynamic Insulation System High-powered Tractor Beam Improved EM Pulse Cannon Battle Rifle Magnetic Acceleration Cannon Subdweller Shrapnel Launcher Plasma Cutter CPS Tube CPS Tube CPS Tube Heavy Mace Botcube [Rating: 143] Favorites ----------- Power Ion Engine Engine Ion Engine Power Core Reinforced Fission Core Reactor Light Antimatter Reactor Propulsion Light Treads Treads Light Treads Wheel Compact Wheel Flight Unit Xenon Bombardment Thruster Utility Huge Storage Unit Device Seismic Detector Storage Huge Storage Unit Processor Enhanced Optical Array Hackware Hacking Suite Protection Powered Armor Weapon Battle Rifle Energy Gun Thermic Laser Energy Cannon Improved EM Pulse Cannon Ballistic Gun Battle Rifle Ballistic Cannon Magnetic Acceleration Cannon Launcher Subdweller Shrapnel Launcher Special Weapon CPS Tube Impact Weapon Heavy Mace Build | -11 -10 -10 -10 -7 -5 -5 -4 -3 -2 -2 -1 ------- Run | Yrd Mat Min Sub Scr Fac DSF Fac Res Res Tes Acc Slots Evolved 18 | . . . . . 10 . 2 2 2 . 2 Power 1 | . . . . . 1 . . . . . . Propulsion 8 | . . . . . 4 . . 2 . . 2 Utility 8 | . . . . . 4 . 2 . 2 . . Weapon 1 | . . . . . 1 . . . . . . Parts Attached 85 | 8 . . 4 4 7 16 15 5 4 17 5 Power 9 | 1 . . . . 1 2 2 . . 2 1 Engine 2 | 1 . . . . . . . . . . 1 Core 2 | . . . . . 1 1 . . . . . Reactor 5 | . . . . . . 1 2 . . 2 . Propulsion 22 | 2 . . 1 2 1 4 2 2 . 6 2 Treads 19 | 2 . . 1 1 1 4 2 2 . 6 . Leg . | . . . . . . . . . . . . Wheel 1 | . . . . 1 . . . . . . . Hover . | . . . . . . . . . . . . Flight 2 | . . . . . . . . . . . 2 Utility 35 | 2 . . . 2 4 4 9 1 4 8 1 Device 16 | 1 . . . . 1 2 5 . 2 5 . Storage 3 | 1 . . . 1 . . . . 1 . . Processor 7 | . . . . . 2 . 2 1 . 2 . Hackware 2 | . . . . . 1 . . . . . 1 Protection 7 | . . . . 1 . 2 2 . 1 1 . Artifact . | . . . . . . . . . . . . Weapon 19 | 3 . . 3 . 1 6 2 2 . 1 1 Energy Gun 4 | 1 . . . . . 2 . . . 1 . Energy Cannon 3 | . . . . . . . 2 . . . 1 Ballistic Gun 4 | 2 . . 2 . . . . . . . . Ballistic Cannon 5 | . . . . . 1 2 . 2 . . . Launcher 1 | . . . 1 . . . . . . . . Special Weapon 1 | . . . . . . 1 . . . . . Impact Weapon 1 | . . . . . . 1 . . . . . Slashing Weapon . | . . . . . . . . . . . . Piercing Weapon . | . . . . . . . . . . . . Special Melee Weapon . | . . . . . . . . . . . . Unidentified Prototypes 9 | . . . . . . . 2 . . 6 1 Parts Lost 43 | . . . . . . 6 9 . . 21 7 Power 6 | . . . . . . 2 2 . . 1 1 Propulsion 14 | . . . . . . . 1 . . 9 4 Utility 13 | . . . . . . 1 5 . . 7 . Weapon 10 | . . . . . . 3 1 . . 4 2 Highest Loss Streak 9 | . . . . . . 5 5 . . 9 4 To Critical Strikes 1 | . . . . . . . . . . . 1 Average Backups 16 | 3 4 5 7 19 15 20 20 21 22 16 4 Power 1 | . 1 1 3 2 . . . . . . 1 Propulsion 3 | 1 2 2 2 3 . 4 5 3 3 . . Utility 4 | . . 1 1 4 5 6 7 9 10 8 1 Weapon 4 | . 1 1 1 6 6 5 3 4 5 4 2 Tool/Special . | . . . . . . . . . . . . Unused Backups 13 | . . . 2 5 . . . . . 6 . Power 3 | . . . 1 2 . . . . . . . Propulsion 1 | . . . . 1 . . . . . . . Utility 4 | . . . 1 . . . . . . 3 . Weapon 2 | . . . . 2 . . . . . . . Tool/Special 3 | . . . . . . . . . . 3 . Average Slot Usage (%) 93 | . 100 100 100 100 95 89 90 94 94 72 19 Engine 9 | . 14 14 14 14 5 . . . . . . Core 1 | . . . . . 4 3 5 4 4 3 . Treads 26 | . 28 28 28 27 28 24 24 32 30 24 3 Device 10 | . 14 14 14 8 4 5 14 14 16 12 . Storage 10 | . 14 14 14 14 5 5 5 4 4 3 . Processor 3 | . . . . . 9 11 13 14 13 11 8 Protection 4 | . . . . 5 5 6 6 4 7 3 . Ballistic Gun 14 | . 28 28 25 17 11 3 . . . . . Ballistic Cannon 1 | . . . . . 4 4 4 12 13 9 . Launcher 6 | . . . 2 10 . 1 4 . . . . Peak Build Rating 143 | 7 7 7 11 20 54 95 111 133 141 143 56 Average Rating 36 | 5 7 7 9 15 53 79 103 130 140 108 32 On Entrance 53 | . 7 7 7 11 19 54 95 111 133 141 52 Naked Turns 1 | . . . . . . . . . . 1 . Heaviest Build 180 | 13 13 13 21 98 106 163 161 158 171 180 11 Greatest Support 247 | 40 40 40 40 42 112 194 194 217 217 247 152 Greatest Overweight (x) 5 | 1 . . . 5 1 1 . . . 1 1 Average Overweight (x) . | . . . . 2 . . . . . . . Largest Inventory Capacity 25 | 8 8 8 8 25 25 25 25 25 25 25 5 Average Capacity 20 | 7 8 8 8 24 25 25 25 25 25 20 5 Most Carried 25 | 4 5 6 8 25 24 25 24 23 25 25 5 Average Carried 16 | 3 4 5 7 19 16 21 21 22 23 17 4 Final Capacity 25 | 8 8 8 8 25 25 25 25 25 25 5 5 Final Carried 25 | 4 5 6 8 25 16 25 22 23 25 5 4 Class Distribution -------------------- 75% | Mutant 9% | Tank 7% | Scavenger-Tank 3% | Skirmisher Dominant Class ---------------- Mutant | -10/Materials Mutant | -10/Mines Mutant | -10/Subcaves Mutant | -7/Scraptown Skirmisher | -5/Factory Assassin | -5/DSF Scavenger-Tank | -4/Factory Scavenger-Tank | -3/Research Tank | -2/Research Tank | -2/Testing Mutant | -1/Access Resources | -11 -10 -10 -10 -7 -5 -5 -4 -3 -2 -2 -1 ----------- Run | Yrd Mat Min Sub Scr Fac DSF Fac Res Res Tes Acc Matter Collected 2763 | 306 14 19 180 143 . 429 626 . 7 810 229 Remotely 415 | . . . . . . . . . . 415 . Salvage Created 3423 | 132 49 28 68 . . 726 1275 . 15 959 171 Parts 154 | 7 4 2 6 . . 32 56 . 1 38 8 Haulers Intercepted 3 | . . . . . . 1 1 . . 1 . Recyclers Shooed 2 | . . . . . . . 1 . . 1 . Parts Field Recycled . | . . . . . . . . . . . . Retrieved Matter . | . . . . . . . . . . . . Parts Self-Destructed 12 | . . . 12 . . . . . . . . Prevented . | . . . . . . . . . . . . Kills | -11 -10 -10 -10 -7 -5 -5 -4 -3 -2 -2 -1 ------- Run | Yrd Mat Min Sub Scr Fac DSF Fac Res Res Tes Acc Combat Hostiles Destroyed 53 | . 1 1 4 . . 9 18 . . 14 6 Melee 4 | . . . . . . 1 . . . . 3 Guns 6 | . 1 1 1 . . 3 . . . . . Cannons 15 | . . . . . . . 5 . . 10 . AOE 27 | . . . 3 . . 5 12 . . 4 3 Classes Destroyed 15 | 2 2 . 1 . . 3 7 . . . . Worker 7 | . . . . . . . 1 . . 4 2 Builder 5 | . . . . . . . 2 . . 3 . Tunneler 2 | 2 . . . . . . . . . . . Hauler 3 | . . . . . . 1 1 . . 1 . Recycler 7 | 1 . . . . . . 3 . . 3 . Operator 1 | . 1 . . . . . . . . . . Watcher 3 | . . . . . . . 2 . 1 . . Swarmer 19 | . . . . . . . 9 . . 4 6 Grunt 13 | . 1 1 . . . 5 3 . . 3 . Sentry 1 | . . . . . . . 1 . . . . Specialist 3 | . . . . . . 3 . . . . . Hunter 7 | . . . . . . . 4 . . 3 . Programmer 5 | . . . . . . . 1 . . 4 . Heavy 1 | . . . . . . 1 . . . . . Subdweller 4 | . . . 4 . . . . . . . . Best Kill Streak 13 | 1 1 1 2 . . 7 10 . 1 13 6 Combat Bots Only 8 | . 1 1 2 . . 6 8 . . 7 6 Max Kills in Single Turn 3 | 1 1 1 1 . . 3 3 . 1 2 1 Gunslinging . | . . . . . . . . . . . . Exploded 3 | . . . 1 . . 3 2 . . 2 1 Melee 1 | . . . . . . 1 . . . . 1 Uniques/NPCs Destroyed . | . . . . . . . . . . . . Combat | -11 -10 -10 -10 -7 -5 -5 -4 -3 -2 -2 -1 -------- Run | Yrd Mat Min Sub Scr Fac DSF Fac Res Res Tes Acc Hostile Shots Fired 872 | . 7 . 16 2 . 149 161 2 . 338 197 Missed 276 | . 1 . 10 . . 28 47 1 . 108 81 Hits 596 | . 6 . 6 2 . 121 114 1 . 230 116 Projectile 596 | . 6 . 6 2 . 121 114 1 . 230 116 Critical Strikes 19 | . . . 1 . . 3 5 . . 9 1 Actively Blocked 8 | . . . . . . . 3 . . 5 . Part Disruptions 3 | . . . . . . . . . . 3 . Damage Taken 11793 | . 64 49 105 45 . 2292 2094 21 . 4512 2611 Core 2405 | . 11 17 . . . 169 146 . . 441 1621 Absorbed by Shields 383 | . . . . . . 131 . . . 252 . Reduced by Siege Mode 96 | . . . . . . 82 14 . . . . Core Remaining (%) 87 | 100 . . . 88 . 83 87 100 . 69 . Volleys Fired 199 | 13 7 5 50 . . 20 41 . 1 54 8 Largest 3 | 2 2 2 2 . . 3 3 . 3 3 1 Hottest 178 | 40 40 40 45 . . 173 178 . 146 164 90 Shots Fired 375 | 26 14 10 58 . . 40 75 . 3 141 8 Gun 127 | 26 14 10 44 . . 28 . . . . 5 Cannon 212 | . . . . . . 5 68 . 3 136 . Launcher 35 | . . . 14 . . 6 7 . . 5 3 Special 1 | . . . . . . 1 . . . . . Kinetic 297 | 26 14 10 58 . . 18 29 . 3 136 3 Thermal 26 | . . . . . . 21 . . . . 5 Explosive . | . . . . . . . . . . . . Electromagnetic 51 | . . . . . . . 46 . . 5 . Robot Hit Streak 21 | 5 12 21 11 . . 19 6 . 6 9 5 Robot Miss Streak 8 | 2 1 . 1 . . 2 3 . . 8 2 Penetration Max 1 | . . . . . . . . . . 1 . Secondary Targets 1 | . . . . . . 1 . . . . . Max Gunslinging Chain 1 | . . . . . . 1 . . . . . Shots Hit Robots 209 | 19 12 9 13 . . 32 47 . 3 64 10 Core Hits 155 | 6 5 3 9 . . 28 45 . 2 46 11 Critical Kills 1 | . . 1 . . . . . . . . . Critical Parts Destroyed 1 | . . . . . . . . . . . 1 Critical Strikes 19 | . . 1 . . . 2 2 . 2 11 1 Burn 2 | . . . . . . 2 . . . . . Destroy 1 | . . 1 . . . . . . . . . Blast 14 | . . . . . . . 1 . 2 11 . Corrupt 1 | . . . . . . . 1 . . . . Smash 1 | . . . . . . . . . . . 1 Melee Attacks 28 | . . . . . . 11 . . . 7 10 Impact 28 | . . . . . . 11 . . . 7 10 Slashing . | . . . . . . . . . . . . Piercing . | . . . . . . . . . . . . Sneak Attacks . | . . . . . . . . . . . . Combat Hostiles . | . . . . . . . . . . . . Follow-up Attacks . | . . . . . . . . . . . . Damage Inflicted 9348 | 163 99 73 531 . 11 2016 2838 . 102 2941 574 Guns 924 | 163 99 72 62 . . 422 . . . . 106 Cannons 3759 | . . . . . . 53 1230 . 102 2374 . Explosions 4357 | . . . 469 . . 1467 1608 . . 567 246 Melee 222 | . . . . . . . . . . . 222 Ramming 86 | . . 1 . . 11 74 . . . . . Kinetic 7128 | 163 99 72 531 . . 1659 1430 . 102 2826 246 Thermal 893 | . . . . . . 283 504 . . . 106 Explosive . | . . . . . . . . . . . . Electromagnetic 1019 | . . . . . . . 904 . . 115 . Impact 222 | . . . . . . . . . . . 222 Slashing . | . . . . . . . . . . . . Piercing . | . . . . . . . . . . . . Highest Corruption 4 | . 3 3 3 . . . . . . 4 . Average Corruption 3 | . 2 3 3 . . . . . . 3 . Corruption Purged . | . . . . . . . . . . . . Corruption Blocked . | . . . . . . . . . . . . Effects 40 | . . 6 24 . . . . . . 10 . Message Errors 9 | . . . 6 . . . . . . 3 . Matter Fused 8 | . . 2 5 . . . . . . 1 . Heat Flow Errors 4 | . . 1 2 . . . . . . 1 . Energy Discharges 4 | . . 1 2 . . . . . . 1 . Parts Rejected 1 | . . . . . . . . . . 1 . Data Loss (minor) 9 | . . 1 5 . . . . . . 3 . Data Loss (major) 3 | . . 1 2 . . . . . . . . Misfires 2 | . . . 2 . . . . . . . . Overload Shots . | . . . . . . . . . . . . Overflow Damage 436 | . . . . . . 71 177 . . 104 84 Projectiles 81 | . . . . . . . 2 . . 79 . Explosions 263 | . . . . . . 36 175 . . 25 27 Melee 92 | . . . . . . 35 . . . . 57 Knockbacks 22 | . . . . . . 2 4 . . 16 . Impact . | . . . . . . . . . . . . Kinetic 22 | . . . . . . 2 4 . . 16 . Secondary . | . . . . . . . . . . . . Self-Inflicted Damage 427 | . . . . . . 20 355 . . 47 5 Shots 12 | . . . . . . 2 7 . . 2 1 Rammed 7 | . . 1 . . 1 4 1 . . . . Targets Rammed 8 | . . 1 . . 1 5 1 . . . . Kicked . | . . . . . . . . . . . . Crushed 1 | . . . . . . 1 . . . . . Highest Temperature 300 | . 6 272 249 . . 243 300 . 42 191 6 Average Temperature 81 | . 6 118 134 . . 77 106 . 23 55 5 Received Heat Transfer 1108 | . 36 27 . 24 . 768 66 . . 187 . Effects 1 | . . . . . . 1 . . . . . Energy Bleed 1 | . . . . . . 1 . . . . . Siege Activations 3 | . . . . . . 2 1 . . . . Total Turns 48 | . . . . . . 35 13 . . . . Longest Duration 23 | . . . . . . 23 13 . . . . Martial Activations . | . . . . . . . . . . . . Shielding Activations . | . . . . . . . . . . . . Robots Disrupted . | . . . . . . . . . . . . Combat Hostiles . | . . . . . . . . . . . . Robots Corrupted 2 | . . . . . . . 2 . . . . Combat Hostiles 1 | . . . . . . . 1 . . . . Parts Fried 6 | . . . . . . . 6 . . . . Impact Corruptions 3 | . . . . . . 1 . . . . 2 Robots Melted . | . . . . . . . . . . . . Combat Hostiles . | . . . . . . . . . . . . Parts Melted 1 | . . . . . . . 1 . . . . Heat Transferred 1483 | . . . . . . 935 400 . . . 148 Parts Sabotaged . | . . . . . . . . . . . . Parts Stolen . | . . . . . . . . . . . . Parts Stripped . | . . . . . . . . . . . . Power Chain Reactions 3 | . . . . . . . 3 . . . . Alert | -11 -10 -10 -10 -7 -5 -5 -4 -3 -2 -2 -1 ------- Run | Yrd Mat Min Sub Scr Fac DSF Fac Res Res Tes Acc Maximum Alert Level 2 | . . . . . . 1 2 1 . 1 1 Low Security (%) 57 | 100 100 100 . . 100 71 19 25 100 36 15 Level 1 28 | . . . . . . 28 7 74 . 63 84 Level 2 13 | . . . . . . . 72 . . . . Level 3 . | . . . . . . . . . . . . Level 4 . | . . . . . . . . . . . . Level 5 . | . . . . . . . . . . . . High Security . | . . . . . . . . . . . . Max Security . | . . . . . . . . . . . . Sterilizations 1 | . . . . . . 1 . . . . . Peak Influence 546 | 5 30 95 . . . 237 546 237 105 351 315 Initial 237 | . . . . . . . 119 237 105 . 170 Average 166 | . 3 31 . . . 94 403 214 58 188 259 Influence Increases 2316 | 15 51 135 . . . 287 701 . 7 770 350 Destroy 0b10 Robot/C 1060 | . 20 100 . . . 180 360 . . 280 120 Destroy 0b10 Robot/NC 145 | 15 5 . . . . 10 45 . 5 55 10 Destroy Leader 180 | . 10 20 . . . 30 66 . 2 42 10 Allied During Kill 15 | . . 15 . . . . . . . . . Successful Hack 76 | . 16 . . . . . 12 . . 24 24 Disable Machine 210 | . . . . . . 15 60 . . 120 15 Destroy Structure 480 | . . . . . . 52 158 . . 219 51 Lose Combat Pursuer 150 | . . . . . . . . . . 30 120 Influence Decreases 2006 | 15 51 90 45 . . 60 476 265 192 487 325 Entered New Map 546 | . . . 24 . . . 108 215 82 2 115 Time Decay 1010 | 15 51 70 21 . . . 278 50 110 275 140 Lost Part 430 | . . . . . . 60 90 . . 210 70 Lost Ally 20 | . . 20 . . . . . . . . . Squads Dispatched 12 | . 1 . . . . 2 4 . . 4 1 Investigation . | . . . . . . . . . . . . Extermination 3 | . . . . . . . 1 . . 1 1 Reinforcement 9 | . 1 . . . . 2 3 . . 3 . Assault . | . . . . . . . . . . . . Garrison . | . . . . . . . . . . . . Intercept . | . . . . . . . . . . . . Searches Triggered . | . . . . . . . . . . . . Construction Impeded 5 | . . . . . . . 2 . . 3 . Haulers Reinforced 1 | . . . . . . . 1 . . . . Active Scanning Responses . | . . . . . . . . . . . . Cargo Convoy Interrupts . | . . . . . . . . . . . . Stealth | -11 -10 -10 -10 -7 -5 -5 -4 -3 -2 -2 -1 --------- Run | Yrd Mat Min Sub Scr Fac DSF Fac Res Res Tes Acc Distress Signals 5 | . . . . . . . 1 . . 3 1 Communications Jammed . | . . . . . . . . . . . . Distress Signals . | . . . . . . . . . . . . Times Spotted 123 | . 3 5 6 1 . 17 27 1 . 34 29 Peak Tracking Total 12 | . 2 3 2 1 . 7 7 1 . 9 12 Tactical Retreats 4 | . . . . . . . . . . 2 2 Traps | -11 -10 -10 -10 -7 -5 -5 -4 -3 -2 -2 -1 ------- Run | Yrd Mat Min Sub Scr Fac DSF Fac Res Res Tes Acc Traps Triggered 5 | . 2 . . . . 1 1 . . . 1 Indirectly . | . . . . . . . . . . . . Trap Hack Attempts . | . . . . . . . . . . . . Triggered . | . . . . . . . . . . . . Disarmed . | . . . . . . . . . . . . Reprogrammed . | . . . . . . . . . . . . Reused . | . . . . . . . . . . . . Traps Extracted . | . . . . . . . . . . . . Installed . | . . . . . . . . . . . . Triggered . | . . . . . . . . . . . . Machines | -11 -10 -10 -10 -7 -5 -5 -4 -3 -2 -2 -1 ---------- Run | Yrd Mat Min Sub Scr Fac DSF Fac Res Res Tes Acc Machines Disabled 14 | . . . . . . 1 4 . . 8 1 Max in Single Turn 4 | . . . . . . 1 4 . . 2 1 Energy Cycler 1 | . . . . . . . . . . . 1 Machines Repaired . | . . . . . . . . . . . . Machines Dismantled . | . . . . . . . . . . . . Machines Sabotaged . | . . . . . . . . . . . . Overloaded Fab Kills . | . . . . . . . . . . . . Hacking | -11 -10 -10 -10 -7 -5 -5 -4 -3 -2 -2 -1 --------- Run | Yrd Mat Min Sub Scr Fac DSF Fac Res Res Tes Acc Machines Accessed 17 | . 1 . . 4 1 . 2 1 . 5 3 Terminals 7 | . 1 . . . 1 . . 1 . 2 2 Fabricators 1 | . . . . . . . . . . 1 . Repair Stations 2 | . . . . . . . 1 . . 1 . Recycling Units 1 | . . . . . . . 1 . . . . Scanalyzers . | . . . . . . . . . . . . Garrison Access 2 | . . . . . . . . . . 1 1 Total Hacks 52 | . 9 . . 29 1 . 3 1 . 5 4 Successful 39 | . 4 . . 29 1 . 2 . . 2 1 Failed 13 | . 5 . . . . . 1 1 . 3 3 Catastrophic 3 | . . . . . . . . 1 . . 2 Database Lockouts . | . . . . . . . . . . . . Manual 3 | . 2 . . . . . . . . 1 . Terminals 16 | . 9 . . . 1 . . 1 . 2 3 Fabricators 1 | . . . . . . . . . . 1 . Repair Stations 3 | . . . . . . . 2 . . 1 . Recycling Units 1 | . . . . . . . 1 . . . . Scanalyzers . | . . . . . . . . . . . . Garrison Access 2 | . . . . . . . . . . 1 1 Terminal Hacks 36 | . 4 . . 29 1 . . . . 1 1 Record 29 | . . . . 29 . . . . . . . Robot Analysis 2 | . 2 . . . . . . . . . . Prototype ID Bank 1 | . . . . . . . . . . 1 . Open DSF 1 | . . . . . 1 . . . . . . Hauler Manifests 1 | . 1 . . . . . . . . . . Zone Layout 2 | . 1 . . . . . . . . . 1 Fabricator Hacks 1 | . . . . . . . . . . 1 . Network Status 1 | . . . . . . . . . . 1 . Repair Station Hacks 1 | . . . . . . . 1 . . . . Scan Component 1 | . . . . . . . 1 . . . . Recycling Unit Hacks 1 | . . . . . . . 1 . . . . Process 1 | . . . . . . . 1 . . . . Scanalyzer . | . . . . . . . . . . . . Garrison Access Hacks . | . . . . . . . . . . . . Unauthorized Hacks . | . . . . . . . . . . . . Terminals . | . . . . . . . . . . . . Fabricators . | . . . . . . . . . . . . Repair Stations . | . . . . . . . . . . . . Recycling Units . | . . . . . . . . . . . . Scanalyzers . | . . . . . . . . . . . . Garrison Access . | . . . . . . . . . . . . Data Cores Recovered . | . . . . . . . . . . . . Used . | . . . . . . . . . . . . Hacking Detections 9 | . 1 . . . . . 1 1 . 3 3 Full Trace Events . | . . . . . . . . . . . . Feedback Events . | . . . . . . . . . . . . Feedback Blocked . | . . . . . . . . . . . . Robot Schematics Acquired . | . . . . . . . . . . . . Robots Built . | . . . . . . . . . . . . Authchips . | . . . . . . . . . . . . Time . | . . . . . . . . . . . . Total Robot Build Rating . | . . . . . . . . . . . . Part Schematics Acquired . | . . . . . . . . . . . . Parts Built . | . . . . . . . . . . . . Authchips . | . . . . . . . . . . . . Time . | . . . . . . . . . . . . Total Part Build Rating . | . . . . . . . . . . . . Parts Repaired . | . . . . . . . . . . . . Time . | . . . . . . . . . . . . Parts Recycled . | . . . . . . . . . . . . Recycled Matter 231 | . . . . . . . 231 . . . . Retrieved Matter . | . . . . . . . . . . . . Retrieved Components . | . . . . . . . . . . . . Parts Scanalyzed . | . . . . . . . . . . . . Part Schematics Acquired . | . . . . . . . . . . . . Parts Damaged . | . . . . . . . . . . . . Bothacking | -11 -10 -10 -10 -7 -5 -5 -4 -3 -2 -2 -1 ------------ Run | Yrd Mat Min Sub Scr Fac DSF Fac Res Res Tes Acc Used RIF Installer . | . . . . . . . . . . . . Robots Hacked . | . . . . . . . . . . . . Non-combat . | . . . . . . . . . . . . Combat . | . . . . . . . . . . . . Robot Hacks Applied . | . . . . . . . . . . . . Relay Couplers Released . | . . . . . . . . . . . . Fabnet Peak Effective % . | . . . . . . . . . . . . Robots Rewired . | . . . . . . . . . . . . Allies Hacked . | . . . . . . . . . . . . Hacks Repelled . | . . . . . . . . . . . . Allies | -11 -10 -10 -10 -7 -5 -5 -4 -3 -2 -2 -1 -------- Run | Yrd Mat Min Sub Scr Fac DSF Fac Res Res Tes Acc Total Allies 3 | . . 3 . . . . . . . . . Largest Group 3 | . . 3 2 . . . . . . . . Highest-Rated Group 40 | . . 40 32 . . . . . . . . Highest-Rated Ally 16 | . . 16 16 . . . . . . . . Total Orders . | . . . . . . . . . . . . Ally Attacks 26 | . . 21 5 . . . . . . . . Total Damage 284 | . . 206 78 . . . . . . . . Kills 5 | . . 4 1 . . . . . . . . Allies Corrupted . | . . . . . . . . . . . . Allies Melted . | . . . . . . . . . . . . Intel | -11 -10 -10 -10 -7 -5 -5 -4 -3 -2 -2 -1 ------- Run | Yrd Mat Min Sub Scr Fac DSF Fac Res Res Tes Acc Active Infowar (turns) 6383 | 32 263 261 945 2842 190 339 606 107 230 568 . Optics 2003 | . . . . . 190 339 606 107 230 531 . Sensors 1140 | . . . . . 189 223 93 105 230 300 . Seismic 4343 | 32 263 261 945 2842 . . . . . . . Robot Analysis Total 2 | . 2 . . . . . . . . . . Derelict Logs Recovered 4 | . . 1 . 3 . . . . . . . Drone Launches . | . . . . . . . . . . . . Drone Recoveries . | . . . . . . . . . . . . Exploration | -11 -10 -10 -10 -7 -5 -5 -4 -3 -2 -2 -1 ------------- Run | Yrd Mat Min Sub Scr Fac DSF Fac Res Res Tes Acc Turns Passed 8594 | 189 263 261 945 4467 195 339 606 107 230 695 297 Spaces Moved 3857 | 93 144 152 492 1393 97 108 262 60 136 441 479 Core 416 | 8 . . . . . . . . . 257 151 Treads 2982 | 85 144 152 492 1253 97 108 262 60 136 184 9 Legs . | . . . . . . . . . . . . Wheels 140 | . . . . 140 . . . . . . . Hover . | . . . . . . . . . . . . Flight 319 | . . . . . . . . . . . 319 Fastest Speed 37 | 50 160 160 160 160 157 157 162 161 161 50 37 Average Speed 197 | 151 160 160 160 317 189 181 162 161 161 102 45 Slowest Speed 340 | 160 160 160 160 340 236 241 165 161 161 242 163 Overloaded Moves . | . . . . . . . . . . . . Propulsion Burnouts . | . . . . . . . . . . . . Robots Hopped 3 | . . . . . . . . . . . 3 Potential Cave-ins 9 | . . . 6 . . . . . . 3 . Cave-ins Triggered . | . . . . . . . . . . . . Exploration Rate (%) 32 | 8 35 29 34 91 4 90 8 3 6 60 20 Regions Visited 11 Branch Regions 4 Pre-discovered Areas 3 | . . 1 . 2 . . . . . . . Known Exits Taken 5 | . . . . . 1 . 1 1 1 1 . Unknown Exits Taken 5 | 1 1 1 1 1 . . . . . . . Scrap Searched 3 | . . . . 3 . . . . . . . Spaces Dug 47 | . . . 36 . . . . . . 9 2 Terrain Destroyed 412 | . . . 204 . . 30 73 . . 84 21 Melee 5 | . . . . . . . . . . 3 2 Projectile 54 | . . . . . . . 7 . . 47 . AOE 353 | . . . 204 . . 30 66 . . 34 19 Terrain Rammed . | . . . . . . . . . . . . Walls Destroyed . | . . . . . . . . . . . . Machines Disabled . | . . . . . . . . . . . . Actions | -11 -10 -10 -10 -7 -5 -5 -4 -3 -2 -2 -1 --------- Run | Yrd Mat Min Sub Scr Fac DSF Fac Res Res Tes Acc Total 4454 | 117 166 161 603 1439 108 198 363 69 143 557 530 Wait 128 | . 15 3 45 13 . 8 29 . 1 9 5 Move 3842 | 92 143 151 491 1392 96 108 261 59 135 440 474 Hop 2 | . . . . . . . . . . . 2 Pick Up 55 | 3 1 1 6 21 1 11 6 1 2 2 . Fast Attach 42 | 8 . . . 2 . 10 5 . 1 12 4 Attach 46 | . . . . . 10 3 10 3 1 15 4 Detach 24 | 1 . . . 2 . 8 3 1 . 6 3 Swap 35 | . . . 4 3 . 7 6 5 2 7 1 Drop 27 | . . . 7 6 . 8 . . . 5 1 Fire 199 | 13 7 5 50 . . 20 41 . 1 54 8 Melee 28 | . . . . . . 11 . . . 7 10 Ram . | . . . . . . . . . . . . Kick . | . . . . . . . . . . . . Crush 7 | . . 1 . . 1 4 1 . . . . Escape Stasis 18 | . . . . . . . . . . . 18 Rewire 1 | . . . . . . . 1 . . . . Trap . | . . . . . . . . . . . . Miscellaneous . | . . . . . . . . . . . . Route ------- -11/Scrapyard -10/Materials -10/Mines -10/Subcaves (discovered 2 exits: [*Mat] / *Scr) -7/Scraptown (discovered 2 exits: *Fac x2) -5/Factory (discovered 3 exits: Upp / Ext / DSF) -5/DSF -4/Factory -3/Research -2/Research -2/Testing -1/Access History --------- Turn | Location | Event 21 | -11/Scrapyard | Discovered new exit (range 15) 190 | -11/Scrapyard | Entered Materials 246 | -10/Materials | Discovered new exit (range 8) 305 | -10/Materials | Build established: Mutant 453 | -10/Materials | Entered Mines 453 | -10/Mines | Assisted by bots powering up and referring to "LRC-V3" 487 | -10/Mines | Learned 2 Materials zone layouts 544 | -10/Mines | Learned location of Storage (-7) 698 | -10/Mines | Discovered new exit (range 9) 714 | -10/Mines | Entered Subcaves 714 | -10/Subcaves | Accompanied by 2 allies 715 | -10/Subcaves | Approached by a straggling Scientist 1199 | -10/Subcaves | A swath of the cavern ceiling suddenly collapsed 1321 | -10/Subcaves | Discovered new exit (range 15) 1561 | -10/Subcaves | Ambushed by Subdweller buried in earth 1565 | -10/Subcaves | Ambushed by Subdweller buried in earth 1643 | -10/Subcaves | Scientist uncovered a shortcut to Scraptown 1659 | -10/Subcaves | Entered Scraptown 1659 | -7/Scraptown | System corruption cleaned by C-Scrubber 2314 | -7/Scraptown | Discovered new exit (range 11) 2528 | -7/Scraptown | Scanned Subdweller tech in exchange for log data 2538 | -7/Scraptown | Learned 12 Factory zone layouts 2541 | -7/Scraptown | Learned Factory interactive machine intel 2545 | -7/Scraptown | Learned location of Extension (-5) 2813 | -7/Scraptown | Visited CR-KLE's Repair Center 2871 | -7/Scraptown | Visited Shadow of the Wyrm 3644 | -7/Scraptown | Visited Science Testing Area 3705 | -7/Scraptown | Visited Assassins FH 3960 | -7/Scraptown | Visited Comm Corps 4127 | -7/Scraptown | Visited SPCMW 4226 | -7/Scraptown | Visited UFD Registry 4226 | -7/Scraptown | Registered with UFD as "Steeltail" 4341 | -7/Scraptown | Visited Curators Association 4491 | -7/Scraptown | Visited Junk Repository 4721 | -7/Scraptown | Visited Chapter 10 4841 | -7/Scraptown | Visited Scrapoid Pod Storage 4897 | -7/Scraptown | Visited Infowarlord's Domain 4963 | -7/Scraptown | Visited Supply Room 5111 | -7/Scraptown | Visited Scrapoid Research Area 5599 | -7/Scraptown | Visited Abandonware Association 5646 | -7/Scraptown | Learned abandonware demo "ERRANTS.EXE" 5782 | -7/Scraptown | Visited Botcube Research 5812 | -7/Scraptown | Found Botcube 5971 | -7/Scraptown | Met Optimus 5971 | -7/Scraptown | Accepted into 0bPrime 6062 | -7/Scraptown | Found Exp. Sensor Array 6106 | -7/Scraptown | Civil war broke out across Scraptown 6123 | -7/Scraptown | Discovered new exit (range 3) 6126 | -7/Scraptown | Entered Factory 6126 | -5/Factory | Evolved 10 slots: Power x1, Propulsion x4, Utility x4, Weapon x1 6127 | -5/Factory | Identified exit to Upper Caves 6127 | -5/Factory | Identified exit to Extension 6128 | -5/Factory | Loaded intel: 54 interactive machine locations 6154 | -5/Factory | Lost 3 allies 6320 | -5/Factory | Identified exit to DSF 6321 | -5/Factory | Entered DSF 6337 | -5/DSF | Additional patrols routed to DSF 6526 | -5/DSF | Found Powered Armor 6530 | -5/DSF | Found Powered Armor 6533 | -5/DSF | Found Powered Armor 6536 | -5/DSF | Found Powered Armor 6568 | -5/DSF | Sterilization system engaged 6572 | -5/DSF | Lost 5 parts (2p1u2w) 6585 | -5/DSF | Found Powered Armor 6588 | -5/DSF | Ambient heat levels rising (+10) 6603 | -5/DSF | Ambient heat levels rising (+10) 6618 | -5/DSF | Ambient heat levels rising (+10) 6625 | -5/DSF | Discovered new exit (range 14) 6633 | -5/DSF | Ambient heat levels rising (+10) 6648 | -5/DSF | Ambient heat levels rising (+10) 6655 | -5/DSF | Identified exit to Factory 6660 | -5/DSF | Entered Factory 6660 | -4/Factory | Evolved 2 slots: Utility x2 6875 | -4/Factory | Lost 5 parts (1p1n3u) 6879 | -4/Factory | Destroyed 8 combat bots 7066 | -4/Factory | Allied Derelicts emerged from ambush trap array 7187 | -4/Factory | Discovered new exit (range 4) 7192 | -4/Factory | Identified exit to Research 7242 | -4/Factory | Build established: Scavenger-Tank 7266 | -4/Factory | Entered Research 7266 | -3/Research | Evolved 2 slots: Propulsion x2 7284 | -3/Research | Found Exp. Signal Interpreter 7287 | -3/Research | Found Exp. Signal Interpreter 7338 | -3/Research | Discovered new exit (range 22) 7372 | -3/Research | Identified exit to Research 7373 | -3/Research | Entered another Research area 7373 | -2/Research | Evolved 2 slots: Utility x2 7596 | -2/Research | Discovered new exit (range 4) 7601 | -2/Research | Identified exit to Testing 7603 | -2/Research | Entered Testing 7776 | -2/Testing | Build established: Tank 7892 | -2/Testing | Destroyed 7 combat bots 7982 | -2/Testing | Lost 9 parts (1n6u2w) 8013 | -2/Testing | Found Prototype Energy Cannon 8075 | -2/Testing | Lost 3 parts (3n) 8134 | -2/Testing | Released all parts (11) 8179 | -2/Testing | Lost 6 parts (1p3n2w) 8273 | -2/Testing | Found Prototype Energy Gun 8273 | -2/Testing | Identified Warp Gun 8296 | -2/Testing | Discovered new exit (range 6) 8298 | -2/Testing | Identified exit to Access 8298 | -2/Testing | Entered Access 8298 | -1/Access | Evolved 2 slots: Propulsion x2 8429 | -1/Access | Energy Cycler disabled 8437 | -1/Access | Spotted B-99 Colossus 8542 | -1/Access | Identified Cld. Nova Cannon 8548 | -1/Access | Core integrity fell below 50% 8564 | -1/Access | Lost 4 parts (1p2n1w) 8568 | -1/Access | Core integrity fell below 20% 8595 | -1/Access | Destroyed by S-43 Plague with Heavy Machine Gun Last Messages --------------- 08530_ K-01 Serf collects debris. 08530_ Slug penetrates Wall. 08531_ Penetrated by Slug. 08532_ Acquired 19 matter. 08533_ ALERT: Potential suspicious activity detected, Programmers report to Access Zone 1J. 08533_ Penetrated by Slug. 08533_ Xenon Bombardment Thruster destroyed. 08533_ Penetrated by Slug. 08534_ K-01 Serf collects debris. 08536_ Slug penetrates Wall. 08536_ Penetrated by Slug. 08542_ Identified Cld. Nova Cannon. 08543_ Penetrated by Slug. 08543_ Slug penetrates S-43 Plague. 08543_ S-43 Plague destroyed. 08555_ U-05 Engineer destroyed. 08562_ K-01 Serf collects debris. 08570_ Acquired Imp. System Shield. 08576_ Enh. Armored Medium Treads destroyed. Map ----- +----------------------------------------------------+ | ??????????????????????????????? | | ??????????????????????????????? | | ?????????????????????????????? | | ?????????????????????????????? | | ?????????????????????????????? | | ?????????????????????????????? | | | ?????????????????????????????????????###### !%! | | ????????????????????????????????????####### = | | ???????????????????????????????????? # | | ???????????????????????????????????? # | | ???????????????????????????????????? # | | ?????????????????????????? ?????????"""" # | | ?????????????????????????? ?????????"""" # | | ?????????????????????????? #???????""""" # | | ?????????????????????????? ## """"" # | | ?????????????? ??????????# ## """"" # | | ?????????????? ????????# ## """"" + | | ??????????????? ???????# ## # | | ???????????????? ??????# ## # | | ??????????????####/####### ################ | | ??????????????# #????????????# | | ??????????????# #????????????# | | ???????????#### #????????????# | | ??????????? #???#######??# | | ??????????????# #?? ???# | | ??????????????# @ #?? ????# | | ??????????????# #? ?????# | | ??????????????######## #? """"?????# | | ?????????????????????# # """"?????# | | ?????????????????????# # """""????# | | ?????????????????????# + """""????# * | | ?????????????????????# # """""????# * | | ?????????????????????# # ???# * | | ?????????????????????# A #? ?# | | ?????????????????????# s#? # | | ?????????????????????# s#?? # | | ?????????????????????# s#??########### | | ?????????????????????+ s#????????????# | | ?????????????????????# s#????????????# | | ?????????????????????# p#????????????# | | ?????????????????????# ############## """" | | ?????????????????????# """" | | ?????????????????????# """" | | ?????????????????????# """" | | ?????????????????????+ """" | | ?????????????????????# | | ?????????????????????# | | ?????????????????????# | | ?????????????????????##################+########## | | ?????????????????????????????????????# ???????? | +----------------------------------------------------+ Best States ------------- Heat Dissipation 70 Coolant Potential 100 Energy Generation 39 Energy Capacity 560 Matter Stores 300 Matter Capacity 300 Sight Range 23 Robot Scan Range 20 Terrain Scan Density 10 EM Shielding 4 Armor Coverage 1600 Phase Shifting 10 Evasion (%) 62 Targeting Accuracy 8 Recoil Reduction 8 Matter Filtering 50 Energy Filtering 30 Offensive Hacking 10 Defensive Hacking 12 Item Schematics ----------------- None Robot Schematics ------------------ None Fabricated ------------ Nothing Repaired ---------- Nothing Alien Tech Used ----------------- None Achievements -------------- None Challenges ------------ None Game ------ Seed LayeredLinkedBay Manual? 0 Play Time 00:58:10 Cumulative 689.6 hours Start 2025.07.09 @ 03:02:24 End 2025.07.09 @ 04:06:15 Sessions 1 Manual Loads 0 Difficulty Rogue Special Mode None Game No. 616 Rogue 401 Adventurer 112 Explorer 103 Win Type - Total 44 Types 28/0/8/3/0/0/4/1/0/0 Lore% 78 Gallery% 81 Achievement% 82 Wizard Run 0 Options --------- Layout 0 ASCII 1 Keyboard 1 Movement Vi Keybinds 1 Fullscreen 2 Font 20/SmallcapsGlow Map View 72x56 Zoom Use 0% Tactical HUD 1 Map Filters NONE Filters NONE Steam 0 RUN: fff900c4-e320-4439-9bf2-42c1415e5028